fUST/lending_fUST_20240812
["ID","MTS","AMOUNT","RATE_DAILY","PERIOD"]
[334677334,1723465644529,-500.0,0.0001945,2]
[334677335,1723465644552,-500.0,0.0001945,2]
[334677336,1723465644575,-500.0,0.0001945,2]
[334677337,1723465644602,-300.0,0.0001945,2]
[334677338,1723465644624,-161812.753038,0.00019468,2]
[334677339,1723465644647,-9652.40516915,0.00019477,2]
[334677340,1723465644671,-1612.28857669,0.00019477,2]
[334677341,1723465644692,-150.112233,0.000195,2]
[334677342,1723465644715,-170.861501,0.0001951,2]
[334677343,1723465644736,-174.298995,0.0001951,2]
[334677344,1723465644763,-151.16360752,0.00019515,2]
[334677345,1723465644784,-150.112233,0.000197,2]
[334677346,1723465644805,-151.90208824,0.0001978,2]
[334677347,1723465644826,-150.112233,0.000199,2]
[334677348,1723465644848,-204.57126989,0.0002,2]
[334677349,1723465644870,-1181.69744739,0.0002,2]
[334677350,1723465644891,-155.13797827,0.0002,2]
[334677351,1723465644912,-1000.0,0.0002,20]
[334677352,1723465644933,-150.112233,0.000201,5]
[334677353,1723465644957,-1393.14395153,0.0002028,2]
[334677354,1723465644978,-354.45307919,0.0002028,2]
[334677355,1723465644998,-149.72570634,0.0002028,2]
[334677364,1723465727574,50142.43435111,0.00024,60]
[334677371,1723465756192,-153.0,0.00016438,2]
[334677372,1723465756214,-153.0,0.00016438,2]
[334677373,1723465756237,-153.0,0.00016438,2]
[334677374,1723465756258,-153.0,0.00016438,2]
[334677375,1723465756279,-158.45275921,0.00016532,2]
[334677376,1723465756301,-1261.96787252,0.000176,2]
[334677377,1723465762093,-727.71758858,0.000176,2]
[334677382,1723465784318,165.047876,0.00014247,2]
[334677389,1723465792291,153.0,0.00016438,2]
[334677390,1723465792500,153.0,0.00016438,2]
[334677393,1723465818677,318.42851594,0.00016438,2]
[334677394,1723465818701,410.97148406,0.00016438,2]
[334677456,1723465831829,-7821.601214,0.00018696,2]
[334677476,1723465832227,-10969.63150746,0.00018696,2]
[334677477,1723465832268,165.92999923,0.00016438,2]
[334677479,1723465832289,-938.22642531,0.00018696,2]
[334677488,1723465837962,-433.39214193,0.00018696,2]
[334677491,1723465838022,-432.85647337,0.00018696,2]
[334677492,1723465838033,-420.30828837,0.00018696,2]
[334677493,1723465838045,-34418.58154437,0.00018696,2]
[334677494,1723465838054,-300.0,0.000187,2]
[334677495,1723465838064,-278.816555,0.00018904,2]
[334677496,1723465838073,-250.0,0.00019041,2]
[334677497,1723465838083,-160.0,0.00019135,3]
[334677498,1723465838092,-35044.64616853,0.00019177,2]
[334677499,1723465838101,-161.959314,0.00019207,2]
[334677500,1723465838113,-240.56996624,0.0001945,2]
[334677501,1723465838128,-472.28479668,0.00019451,2]
[334677502,1723465838138,-817.03180288,0.00019451,4]
[334677504,1723465838147,-173.713303,0.0001951,2]
[334677505,1723465838156,-482.1,0.0001979,3]
[334677506,1723465838166,-500.0,0.00019799,2]
[334677507,1723465838175,-500.0,0.00019799,2]
[334677508,1723465838184,-500.0,0.00019799,2]
[334677509,1723465838194,-500.0,0.00019799,2]
[334677510,1723465838208,-500.0,0.00019799,2]
[334677511,1723465838219,-500.0,0.00019799,2]
[334677512,1723465838229,-500.0,0.00019799,2]
[334677513,1723465838239,-487.5896732,0.00019799,2]
[334677514,1723465838248,-29416.1496497,0.000198,2]
[334677515,1723465838258,-5000.0,0.00019842,2]
[334677516,1723465838268,-309.48934258,0.00019925,2]
[334677517,1723465838278,-13085.75701967,0.0001999,2]
[334677518,1723465838288,-5576.7016452,0.0002,2]
[334677519,1723465838297,-336.53868747,0.0002,2]
[334677520,1723465838307,-1856.76379079,0.0002,2]
[334677521,1723465838316,-34082.63590581,0.0002,2]
[334677522,1723465838325,-1561.86338294,0.0002,2]
[334677523,1723465838335,-5322.29976103,0.0002,2]
[334677524,1723465838344,-154.74467129,0.0002028,2]
[334677525,1723465838353,-150.112233,0.000204,4]
[334677526,1723465838522,-600.0,0.00020458,2]
[334677527,1723465838532,-174.298995,0.00020485,2]
[334677528,1723465838541,-2000.0,0.00020501,2]
[334677529,1723465838551,-420.0,0.0002057,2]
[334677530,1723465838560,-150.112233,0.000206,5]
[334677531,1723465838570,-600.0,0.00020671,2]
[334677532,1723465838580,-70149.955664,0.00020691,2]
[334677533,1723465838590,-151.592,0.00020695,2]
[334677534,1723465838599,-508.0,0.00020695,2]
[334677535,1723465838609,-1413.0,0.00020695,2]
[334677536,1723465838623,-588.710544,0.000207,9]
[334677537,1723465838633,-8272.22230935,0.00020701,11]
[334677538,1723465838646,-88888.0,0.00020701,3]
[334677539,1723465838656,-1635.87547152,0.00020721,2]
[334677540,1723465838665,-1000.0,0.00020809,2]
[334677541,1723465838675,-210449.866992,0.00020811,2]
[334677542,1723465838685,-510.92084251,0.00020821,3]
[334677543,1723465838694,-500.0,0.00020821,3]
[334677544,1723465838704,-500.0,0.00020821,3]
[334677545,1723465838716,-500.0,0.00020821,3]
[334677546,1723465838727,-500.0,0.00020821,3]
[334677547,1723465838736,-422.79778272,0.00020821,3]
[334677548,1723465838746,-500.0,0.00020821,3]
[334677549,1723465838756,-500.0,0.00020821,3]
[334677550,1723465838765,-503.3674401,0.00020821,3]
[334677551,1723465838774,-500.0,0.00020821,3]
[334677552,1723465838784,-500.0,0.00020821,3]
[334677553,1723465838793,-530.41,0.00020821,3]
[334677554,1723465838803,-501.98845617,0.00020821,3]
[334677555,1723465838812,-506.19468139,0.00020821,3]
[334677556,1723465838821,-500.0,0.00020821,3]
[334677557,1723465838831,-500.0,0.00020821,3]
[334677558,1723465838840,-500.0,0.00020821,3]
[334677559,1723465838850,-508.3166345,0.00020821,3]
[334677560,1723465838859,-500.0,0.00020821,3]
[334677561,1723465838873,-500.0,0.00020821,3]
[334677562,1723465838882,-500.0,0.00020821,3]
[334677563,1723465838892,-505.87900514,0.00020821,3]
[334677564,1723465838901,-327.02954162,0.00020821,3]
[334677565,1723465838910,-500.0,0.00020821,3]
[334677566,1723465838920,-500.0,0.00020821,3]
[334677567,1723465838930,-543.06,0.00020821,3]
[334677568,1723465838939,-640.33,0.00020821,3]
[334677569,1723465838948,-500.0,0.00020821,3]
[334677570,1723465838959,-500.0,0.00020821,3]
[334677571,1723465838968,-500.0,0.00020821,3]
[334677572,1723465838977,-528.55,0.00020821,3]
[334677573,1723465838987,-511.2077985,0.00020821,3]
[334677574,1723465838996,-500.0,0.00020821,3]
[334677575,1723465839005,-506.13000869,0.00020821,3]
[334677576,1723465839015,-500.0,0.00020821,3]
[334677577,1723465839025,-500.0,0.00020821,3]
[334677578,1723465839034,-500.0,0.00020821,3]
[334677579,1723465839043,-503.04790354,0.00020821,3]
[334677580,1723465839052,-538.62229691,0.00020821,3]
[334677581,1723465839061,-502.21590744,0.00020821,3]
[334677582,1723465839070,-520.15882396,0.00020821,3]
[334677583,1723465839080,-500.0,0.00020821,3]
[334677584,1723465839089,-508.75605454,0.00020821,3]
[334677585,1723465839099,-500.0,0.00020821,3]
[334677586,1723465839108,-348.7057126,0.00020821,3]
[334677587,1723465839122,-500.0,0.00020821,3]
[334677588,1723465839132,-605.76,0.00020821,3]
[334677589,1723465839143,-152.30821725,0.00020821,3]
[334677590,1723465839154,-503.24843815,0.00020821,3]
[334677591,1723465839164,-500.0,0.00020821,3]
[334677592,1723465839173,-500.0,0.00020821,3]
[334677593,1723465839182,-502.64746291,0.00020821,3]
[334677594,1723465839191,-809.05,0.00020821,3]
[334677595,1723465839200,-500.0,0.00020821,3]
[334677596,1723465839209,-500.0,0.00020821,3]
[334677597,1723465839218,-500.73988775,0.00020821,3]
[334677598,1723465839228,-500.0,0.00020821,3]
[334677599,1723465839238,-828.39,0.00020821,3]
[334677600,1723465839247,-500.0,0.00020821,3]
[334677601,1723465839257,-500.0,0.00020821,3]
[334677602,1723465839267,-500.0,0.00020821,3]
[334677603,1723465839277,-500.0,0.00020821,3]
[334677604,1723465839286,-500.0,0.00020821,3]
[334677605,1723465839296,-500.0,0.00020821,3]
[334677606,1723465839308,-500.0,0.00020821,3]
[334677607,1723465839318,-500.0,0.00020821,3]
[334677608,1723465839328,-500.0,0.00020821,3]
[334677609,1723465839338,-511.03850065,0.00020821,3]
[334677610,1723465839347,-625.8659027,0.00020821,3]
[334677611,1723465839356,-500.0,0.00020821,3]
[334677613,1723465839368,-500.0,0.00020821,3]
[334677614,1723465839377,-500.0,0.00020821,3]
[334677616,1723465839387,-504.4163901,0.00020821,3]
[334677617,1723465839396,-166.54872756,0.00020821,3]
[334677618,1723465839406,-502.78650335,0.00020821,3]
[334677619,1723465839415,-500.0,0.00020821,3]
[334677620,1723465839425,-503.20593666,0.00020821,3]
[334677622,1723465839434,-500.0,0.00020821,3]
[334677624,1723465839444,-276.09204124,0.00020821,3]
[334677626,1723465839453,-500.0,0.00020821,3]
[334677628,1723465839463,-500.0,0.00020821,3]
[334677630,1723465839472,-500.0,0.00020821,3]
[334677632,1723465839481,-500.0,0.00020821,3]
[334677634,1723465839491,-503.34318761,0.00020821,3]
[334677635,1723465839500,-500.0,0.00020821,3]
[334677636,1723465839509,-500.0,0.00020821,3]
[334677637,1723465839518,-505.10991823,0.00020821,3]
[334677638,1723465839528,-500.0,0.00020821,2]
[334677639,1723465839538,-500.0,0.00020821,3]
[334677641,1723465839548,-500.0,0.00020821,3]
[334677642,1723465839558,-707.0,0.00020821,3]
[334677643,1723465839568,-500.0,0.00020821,3]
[334677644,1723465839578,-500.0,0.00020821,3]
[334677645,1723465839588,-500.0,0.00020821,3]
[334677646,1723465839599,-500.0,0.00020821,3]
[334677647,1723465839608,-500.0,0.00020821,3]
[334677648,1723465839620,-505.81028186,0.00020821,3]
[334677649,1723465839629,-500.92905946,0.00020821,3]
[334677650,1723465839642,-500.0,0.00020821,3]
[334677651,1723465839651,-500.0,0.00020821,3]
[334677652,1723465839661,-500.0,0.00020821,3]
[334677653,1723465839670,-500.0,0.00020821,3]
[334677654,1723465839681,-500.0,0.00020821,3]
[334677655,1723465839691,-2746.1,0.00020821,3]
[334677657,1723465839701,-500.0,0.00020821,3]
[334677658,1723465839712,-151.0,0.00020821,2]
[334677660,1723465839726,-500.0,0.00020821,3]
[334677661,1723465839735,-500.0,0.00020821,3]
[334677662,1723465839744,-500.0,0.00020821,3]
[334677663,1723465839754,-500.0,0.00020821,3]
[334677664,1723465839764,-500.0,0.00020821,3]
[334677665,1723465839775,-1209.9,0.00020821,3]
[334677667,1723465839784,-1542.61,0.00020821,3]
[334677669,1723465839794,-500.0,0.00020821,3]
[334677671,1723465839804,-508.29904835,0.00020821,3]
[334677672,1723465839814,-504.51658871,0.00020821,3]
[334677673,1723465839823,-1140.83,0.00020821,3]
[334677674,1723465839833,-500.0,0.00020821,3]
[334677676,1723465839842,-502.41031601,0.00020821,3]
[334677677,1723465839851,-1159.65,0.00020821,3]
[334677679,1723465839861,-505.06170648,0.00020821,3]
[334677680,1723465839874,-500.0,0.00020821,3]
[334677681,1723465839883,-500.0,0.00020821,3]
[334677682,1723465839893,-500.0,0.00020821,3]
[334677683,1723465839903,-500.0,0.00020821,3]
[334677685,1723465839912,-870.78,0.00020821,3]
[334677686,1723465839922,-500.0,0.00020821,3]
[334677687,1723465839931,-957.37,0.00020821,3]
[334677688,1723465839941,-500.0,0.00020821,3]
[334677689,1723465839952,-509.21040246,0.00020821,3]
[334677690,1723465839963,-500.0,0.00020821,3]
[334677691,1723465839973,-544.83,0.00020821,3]
[334677692,1723465839983,-713.32,0.00020821,3]
[334677693,1723465839992,-501.14172296,0.00020821,3]
[334677694,1723465840002,-500.0,0.00020821,3]
[334677695,1723465840011,-500.0,0.00020821,3]
[334677696,1723465840021,-500.0,0.00020821,3]
[334677697,1723465840030,-500.0,0.00020821,3]
[334677698,1723465840039,-500.0,0.00020821,3]
[334677699,1723465840048,-500.0,0.00020821,3]
[334677700,1723465840058,-555.00322272,0.00020821,3]
[334677701,1723465840067,-509.72787759,0.00020821,3]
[334677702,1723465840076,-500.0,0.00020821,3]
[334677703,1723465840086,-500.0,0.00020821,3]
[334677704,1723465840096,-505.64252159,0.00020821,3]
[334677705,1723465840106,-507.77632743,0.00020821,3]
[334677706,1723465840119,-505.0,0.00020821,3]
[334677707,1723465840128,-500.0,0.00020821,3]
[334677708,1723465840137,-502.30956681,0.00020821,3]
[334677709,1723465840147,-500.0,0.00020821,3]
[334677710,1723465840156,-500.0,0.00020821,3]
[334677711,1723465840166,-500.0,0.00020821,3]
[334677712,1723465840176,-500.0,0.00020821,3]
[334677713,1723465840185,-506.51584812,0.00020821,3]
[334677714,1723465840194,-500.43605839,0.00020821,3]
[334677715,1723465840204,-500.0,0.00020821,3]
[334677716,1723465840215,-500.0,0.00020821,3]
[334677717,1723465840225,-509.53757874,0.00020821,3]
[334677718,1723465840235,-500.0,0.00020821,3]
[334677719,1723465840245,-279.59967043,0.00020821,3]
[334677720,1723465840254,-500.0,0.00020821,3]
[334677721,1723465840263,-987.54,0.00020821,3]
[334677722,1723465840273,-500.0,0.00020821,3]
[334677723,1723465840282,-500.0,0.00020821,3]
[334677724,1723465840291,-500.0,0.00020821,3]
[334677725,1723465840300,-503.16228762,0.00020821,3]
[334677726,1723465840310,-500.0,0.00020821,3]
[334677727,1723465840320,-500.0,0.00020821,3]
[334677728,1723465840329,-500.0,0.00020821,3]
[334677729,1723465840338,-500.0,0.00020821,3]
[334677730,1723465840347,-500.0,0.00020821,3]
[334677731,1723465840358,-500.0,0.00020821,3]
[334677732,1723465840373,-500.0,0.00020821,3]
[334677733,1723465840383,-500.0,0.00020821,3]
[334677734,1723465840392,-500.0,0.00020821,3]
[334677735,1723465840402,-512.50635264,0.00020821,3]
[334677736,1723465840412,-500.0,0.00020821,3]
[334677737,1723465840421,-500.0,0.00020821,3]
[334677738,1723465840431,-513.37383625,0.00020821,3]
[334677739,1723465840441,-500.0,0.00020821,3]
[334677740,1723465840450,-505.0683132,0.00020821,3]
[334677741,1723465840459,-500.0,0.00020821,3]
[334677742,1723465840468,-500.0,0.00020821,3]
[334677743,1723465840477,-500.0,0.00020821,3]
[334677744,1723465840487,-500.0,0.00020821,3]
[334677745,1723465840496,-500.0,0.00020821,3]
[334677746,1723465840506,-500.0,0.00020821,3]
[334677747,1723465840516,-500.0,0.00020821,3]
[334677748,1723465840525,-500.0,0.00020821,3]
[334677749,1723465840534,-500.0,0.00020821,3]
[334677750,1723465840543,-500.0,0.00020821,3]
[334677751,1723465840552,-500.0,0.00020821,3]
[334677752,1723465840563,-500.0,0.00020821,3]
[334677753,1723465840572,-500.0,0.00020821,3]
[334677754,1723465840582,-1310.03,0.00020821,3]
[334677755,1723465840591,-500.0,0.00020821,3]
[334677756,1723465840601,-500.0,0.00020821,3]
[334677757,1723465840610,-500.0,0.00020821,3]
[334677758,1723465840623,-500.0,0.00020821,3]
[334677759,1723465840633,-512.19781729,0.00020821,3]
[334677760,1723465840646,-500.0,0.00020821,3]
[334677761,1723465840655,-500.0,0.00020821,3]
[334677762,1723465840665,-500.0,0.00020821,3]
[334677763,1723465840674,-500.0,0.00020821,3]
[334677764,1723465840683,-500.0,0.00020821,3]
[334677765,1723465840693,-505.38117355,0.00020821,3]
[334677766,1723465840703,-431.89999871,0.00020821,3]
[334677767,1723465840713,-500.0,0.00020821,3]
[334677768,1723465840722,-502.06461699,0.00020821,3]
[334677769,1723465840732,-651.58,0.00020821,3]
[334677770,1723465840743,-500.0,0.00020821,3]
[334677771,1723465840752,-922.84,0.00020821,3]
[334677772,1723465840761,-500.0,0.00020821,3]
[334677773,1723465840771,-500.0,0.00020821,3]
[334677774,1723465840780,-500.0,0.00020821,3]
[334677775,1723465840790,-518.52850845,0.00020821,3]
[334677776,1723465840799,-503.16277501,0.00020821,3]
[334677777,1723465840809,-647.09165506,0.00020821,3]
[334677778,1723465840818,-500.0,0.00020821,3]
[334677779,1723465840827,-500.0,0.00020821,3]
[334677780,1723465840837,-500.0,0.00020821,3]
[334677781,1723465840847,-500.0,0.00020821,3]
[334677782,1723465840856,-500.0,0.00020821,3]
[334677783,1723465840868,-500.0,0.00020821,3]
[334677784,1723465840878,-500.0,0.00020821,3]
[334677785,1723465840888,-872.06443023,0.00020821,3]
[334677786,1723465840911,-236.56556977,0.00020821,3]
[334677787,1723465840921,-500.0,0.00020821,3]
[334677788,1723465840931,-500.0,0.00020821,3]
[334677789,1723465840941,-500.0,0.00020821,3]
[334677790,1723465840951,-207.6497995,0.00020821,3]
[334677791,1723465841285,-270.59468243,0.00020821,11]
[334677792,1723465841296,-292.3502005,0.00020821,3]
[334677793,1723465841306,-440.45964835,0.00020821,3]
[334677794,1723465841317,-585.31294183,0.00020821,3]
[334677795,1723465841328,-500.0,0.00020821,3]
[334677796,1723465841338,-814.53,0.00020821,3]
[334677797,1723465841348,-500.0,0.00020821,3]
[334677798,1723465841358,-365.82937392,0.00020821,3]
[334677799,1723465841370,-500.0,0.00020821,3]
[334677800,1723465841379,-500.0,0.00020821,3]
[334677801,1723465841389,-500.0,0.00020821,3]
[334677802,1723465841399,-506.5942804,0.00020821,3]
[334677803,1723465841408,-510.2702451,0.00020821,3]
[334677804,1723465841418,-151.0,0.00020821,2]
[334677805,1723465841427,-151.0,0.00020821,2]
[334677806,1723465841437,-505.7020919,0.00020821,3]
[334677807,1723465841447,-987.11,0.00020821,3]
[334677808,1723465841456,-151.0,0.00020821,2]
[334677809,1723465841466,-151.0,0.00020821,2]
[334677810,1723465841476,-504.97414325,0.00020821,3]
[334677811,1723465841485,-500.0,0.00020821,3]
[334677812,1723465841496,-988.13,0.00020821,3]
[334677813,1723465841505,-500.0,0.00020821,3]
[334677814,1723465841515,-637.33,0.00020821,3]
[334677815,1723465841524,-500.0,0.00020821,3]
[334677816,1723465841534,-343.6593187,0.00020821,3]
[334677817,1723465841544,-500.0,0.00020821,3]
[334677818,1723465841553,-509.88815978,0.00020821,3]
[334677819,1723465841562,-500.0,0.00020821,3]
[334677820,1723465841572,-500.0,0.00020821,3]
[334677821,1723465841581,-873.1,0.00020821,3]
[334677822,1723465841591,-500.0,0.00020821,3]
[334677823,1723465841600,-875.31,0.00020821,3]
[334677824,1723465841610,-623.02,0.00020821,3]
[334677825,1723465841622,-500.0,0.00020821,3]
[334677826,1723465841632,-500.0,0.00020821,3]
[334677827,1723465841647,-502.97989153,0.00020821,3]
[334677828,1723465841656,-514.91161468,0.00020821,3]
[334677829,1723465841666,-500.0,0.00020821,3]
[334677830,1723465841676,-151.0,0.00020821,2]
[334677831,1723465841687,-152.272313,0.00020821,2]
[334677832,1723465841696,-500.0,0.00020821,3]
[334677833,1723465841705,-500.0,0.00020821,3]
[334677834,1723465841717,-500.0,0.00020821,3]
[334677835,1723465841727,-500.0,0.00020821,3]
[334677836,1723465841737,-1222.79,0.00020821,3]
[334677837,1723465841746,-500.0,0.00020821,3]
[334677838,1723465841756,-286.13883737,0.00020821,3]
[334677839,1723465841766,-500.0,0.00020821,3]
[334677840,1723465841775,-500.0,0.00020821,3]
[334677841,1723465841784,-66.46771106,0.00020821,3]
[334677848,1723465843075,-433.53228894,0.00020821,3]
[334677849,1723465843085,-608.46,0.00020821,3]
[334677850,1723465843095,-500.0,0.00020821,3]
[334677852,1723465843104,-1949.88,0.00020821,3]
[334677854,1723465843114,-500.0,0.00020821,3]
[334677856,1723465843129,-151.0,0.00020821,2]
[334677858,1723465843138,-151.0,0.00020821,2]
[334677860,1723465843147,-500.0,0.00020821,3]
[334677862,1723465843157,-500.0,0.00020821,3]
[334677865,1723465843166,-500.0,0.00020821,3]
[334677867,1723465843174,-500.0,0.00020821,3]
[334677869,1723465843183,-500.0,0.00020821,3]
[334677871,1723465843192,-580.51,0.00020821,3]
[334677873,1723465843201,-500.0,0.00020821,3]
[334677875,1723465843211,-500.0,0.00020821,3]
[334677876,1723465843221,-500.0,0.00020821,3]
[334677877,1723465843230,-297.51445606,0.00020821,3]
[334677878,1723465843239,-500.0,0.00020821,3]
[334677879,1723465843249,-500.0,0.00020821,3]
[334677880,1723465843259,-500.0,0.00020821,3]
[334677881,1723465843268,-500.0,0.00020821,3]
[334677882,1723465843278,-701.33,0.00020821,3]
[334677883,1723465843287,-506.35734936,0.00020821,3]
[334677884,1723465843297,-500.0,0.00020821,3]
[334677885,1723465843307,-768.75,0.00020821,3]
[334677886,1723465843316,-500.0,0.00020821,3]
[334677887,1723465843325,-500.0,0.00020821,3]
[334677888,1723465843334,-201.736776,0.00020821,2]
[334677889,1723465843344,-201.736776,0.00020821,2]
[334677890,1723465843353,-201.736776,0.00020821,2]
[334677891,1723465843363,-500.0,0.00020821,3]
[334677892,1723465843378,-1364.76,0.00020821,3]
[334677893,1723465843388,-201.736776,0.00020821,2]
[334677894,1723465843398,-201.736776,0.00020821,2]
[334677895,1723465843408,-201.736776,0.00020821,2]
[334677896,1723465843417,-500.0,0.00020821,3]
[334677897,1723465843427,-1048.76,0.00020821,3]
[334677898,1723465843436,-500.0,0.00020821,3]
[334677899,1723465843446,-679.59,0.00020821,3]
[334677900,1723465843456,-500.0,0.00020821,3]
[334677901,1723465843466,-151.0,0.00020821,2]
[334677902,1723465843477,-151.0,0.00020821,2]
[334677903,1723465843487,-1492.28,0.00020821,3]
[334677904,1723465843496,-151.0,0.00020821,2]
[334677905,1723465843506,-151.0,0.00020821,2]
[334677906,1723465843516,-151.0,0.00020821,2]
[334677907,1723465843526,-151.0,0.00020821,2]
[334677908,1723465843535,-500.0,0.00020821,3]
[334677909,1723465843545,-557.21,0.00020821,3]
[334677910,1723465843555,-555.20493065,0.00020821,3]
[334677911,1723465843565,-500.0,0.00020821,3]
[334677912,1723465843574,-551.31,0.00020821,3]
[334677913,1723465843584,-500.0,0.00020821,3]
[334677914,1723465843594,-500.0,0.00020821,3]
[334677915,1723465843603,-500.0,0.00020821,3]
[334677916,1723465843613,-1092.03,0.00020821,3]
[334677917,1723465843627,-500.0,0.00020821,3]
[334677918,1723465843637,-500.0,0.00020821,3]
[334677919,1723465843650,-584.52,0.00020821,3]
[334677920,1723465843659,-1547.35,0.00020821,3]
[334677921,1723465843668,-500.80828887,0.00020821,3]
[334677922,1723465843679,-502.03387557,0.00020821,3]
[334677923,1723465843690,-564.70536465,0.00020821,3]
[334677924,1723465843700,-500.0,0.00020821,3]
[334677925,1723465843709,-500.0,0.00020821,3]
[334677926,1723465843721,-1378.59,0.00020821,3]
[334677927,1723465843731,-500.0,0.00020821,3]
[334677928,1723465843741,-500.0,0.00020821,3]
[334677930,1723465843751,-500.0,0.00020821,3]
[334677931,1723465843760,-151.0,0.00020821,2]
[334677932,1723465843770,-6428.31,0.00020821,3]
[334677934,1723465843779,-758.64,0.00020821,3]
[334677936,1723465843789,-500.0,0.00020821,3]
[334677937,1723465843798,-1768.72,0.00020821,3]
[334677939,1723465843809,-502.81628372,0.00020821,3]
[334677940,1723465843820,-500.0,0.00020821,3]
[334677941,1723465843830,-500.0,0.00020821,2]
[334677942,1723465843840,-500.0,0.00020821,3]
[334677943,1723465843850,-1356.13,0.00020821,3]
[334677944,1723465843860,-500.0,0.00020821,3]
[334677945,1723465843872,-1402.66,0.00020821,3]
[334677946,1723465843881,-500.0,0.00020821,3]
[334677947,1723465843890,-1961.64,0.00020821,3]
[334677948,1723465843900,-500.0,0.00020821,3]
[334677949,1723465843910,-500.0,0.00020821,3]
[334677950,1723465843920,-4310.77,0.00020821,3]
[334677951,1723465843930,-151.0,0.00020821,2]
[334677952,1723465843940,-151.0,0.00020821,2]
[334677953,1723465843950,-151.0,0.00020821,2]
[334677954,1723465843959,-500.0,0.00020821,3]
[334677955,1723465843968,-504.02234705,0.00020821,3]
[334677956,1723465843978,-500.0,0.00020821,3]
[334677957,1723465843987,-500.0,0.00020821,3]
[334677958,1723465843997,-500.0,0.00020821,3]
[334677959,1723465844007,-504.90175956,0.00020821,3]
[334677960,1723465844016,-501.90565031,0.00020821,3]
[334677961,1723465844026,-500.0,0.00020821,3]
[334677962,1723465844035,-759.48,0.00020821,3]
[334677963,1723465844045,-500.0,0.00020821,3]
[334677964,1723465844055,-500.0,0.00020821,3]
[334677965,1723465844064,-1931.14,0.00020821,3]
[334677966,1723465844073,-500.0,0.00020821,3]
[334677967,1723465844082,-151.0,0.00020821,2]
[334677968,1723465844092,-151.0,0.00020821,2]
[334677969,1723465844101,-795.28,0.00020821,3]
[334677970,1723465844111,-151.0,0.00020821,2]
[334677971,1723465844126,-500.0,0.00020821,3]
[334677972,1723465844136,-1332.86,0.00020821,3]
[334677973,1723465844145,-500.0,0.00020821,2]
[334677974,1723465844155,-500.0,0.00020821,3]
[334677975,1723465844164,-500.0,0.00020821,3]
[334677976,1723465844174,-501.68433035,0.00020821,3]
[334677977,1723465844184,-1279.04,0.00020821,3]
[334677978,1723465844193,-500.0,0.00020821,3]
[334677979,1723465844203,-500.0,0.00020821,3]
[334677980,1723465844213,-513.66216797,0.00020821,3]
[334677981,1723465844224,-500.0,0.00020821,3]
[334677982,1723465844234,-502.36932696,0.00020821,3]
[334677983,1723465844244,-500.0,0.00020821,3]
[334677984,1723465844253,-6926.41,0.00020821,3]
[334677985,1723465844263,-712.57,0.00020821,3]
[334677986,1723465844273,-1720.73,0.00020821,3]
[334677987,1723465844283,-500.0,0.00020821,3]
[334677988,1723465844292,-546.69468098,0.00020821,3]
[334677989,1723465844302,-6266.92,0.00020821,3]
[334677990,1723465844311,-2081.55,0.00020821,3]
[334677991,1723465844321,-506.12883141,0.00020821,3]
[334677992,1723465844330,-500.0,0.00020821,3]